Cogmind - Beta 17 @@@ ROGUE MODE // 2026.08.22 @ 11:04:43 Player: SovietPaperclip Result: Self-destructed Performance ------------- Evolutions (1) 500 Regions Visited (3) 600 Robots Destroyed (27) 135 Value Destroyed (423) 423 Prototype IDs (0) 0 Alien Tech Used (0) 0 Bonus (0) 0 TOTAL SCORE: 1658 Bonus ------- None Cogmind --------- Core Integrity 346/400 Matter 299/300 Energy 252/265 System Corruption 0% Temperature Danger (444) Movement Core (850) Ox16 Location -9/Materials Parts ------- > --- POWER (1) -------- Improved Ion Engine > --- PROPULSION (3) --- (None) > --- UTILITY (3) ------ High-capacity Storage Unit Seismic Detector > --- WEAPON (2) ------- Spread Laser > --- INVENTORY (20) --- Improved Ion Engine Small Storage Unit Improved Terrain Scanner Hacking Suite Hacking Suite Light Assault Rifle Grenade Launcher Grenade Launcher Peak State ------------ > --- POWER ------------ Improved Ion Engine > --- PROPULSION ------- Aluminum Leg Wheel > --- UTILITY ---------- High-capacity Storage Unit Seismic Detector > --- WEAPON ----------- Spread Laser Assault Rifle > --- INVENTORY -------- Improved Ion Engine Small Storage Unit Improved Terrain Scanner Hacking Suite Spread Laser Grenade Launcher Grenade Launcher [Rating: 10] Favorites ----------- Power Improved Ion Engine Engine Improved Ion Engine Propulsion Aluminum Leg Leg Aluminum Leg Wheel Wheel Utility Seismic Detector Device Seismic Detector Storage Medium Storage Unit Weapon Spread Laser Energy Gun Spread Laser Ballistic Gun Assault Rifle Build | -11 -10 -10 -9 ------- Run | Yrd Mat Min Mat Slots Evolved 2 | . . . 2 Power . | . . . . Propulsion 1 | . . . 1 Utility 1 | . . . 1 Weapon . | . . . . Parts Attached 14 | 7 5 2 . Power 2 | 1 1 . . Engine 2 | 1 1 . . Core . | . . . . Reactor . | . . . . Propulsion 3 | 2 1 . . Treads . | . . . . Leg 2 | 2 . . . Wheel 1 | . 1 . . Hover . | . . . . Flight . | . . . . Utility 5 | 2 2 1 . Device 2 | 1 . 1 . Storage 3 | 1 2 . . Processor . | . . . . Hackware . | . . . . Protection . | . . . . Artifact . | . . . . Weapon 4 | 2 1 1 . Energy Gun 2 | . 1 1 . Energy Cannon . | . . . . Ballistic Gun 2 | 2 . . . Ballistic Cannon . | . . . . Launcher . | . . . . Special Weapon . | . . . . Impact Weapon . | . . . . Slashing Weapon . | . . . . Piercing Weapon . | . . . . Special Melee Weapon . | . . . . Unidentified Prototypes . | . . . . Parts Lost 7 | . 2 3 2 Power . | . . . . Propulsion 3 | . 1 1 1 Utility 1 | . . 1 . Weapon 3 | . 1 1 1 Highest Loss Streak 3 | . 2 3 2 To Critical Strikes . | . . . . Average Backups 5 | . 5 6 7 Power . | . . 1 1 Propulsion . | . . . . Utility 2 | . 2 3 3 Weapon 2 | . 2 2 3 Tool/Special . | . . . . Unused Backups 6 | . . . 6 Power 1 | . . . 1 Propulsion . | . . . . Utility 2 | . . . 2 Weapon 3 | . . . 3 Tool/Special . | . . . . Average Slot Usage (%) 87 | . 90 85 64 Engine 13 | . 14 14 11 Leg 13 | . 18 1 . Wheel 4 | . . 14 9 Device 13 | . 14 13 11 Storage 13 | . 14 14 11 Energy Gun 14 | . 9 27 22 Ballistic Gun 13 | . 18 1 . Peak Build Rating 10 | 7 10 10 10 Average Rating 8 | 5 8 9 9 On Entrance 6 | . 7 10 10 Avg Prop Armor Cover (%) 9 | . 9 9 . Naked Turns . | . . . . Heaviest Build 54 | 15 53 54 54 Greatest Support 20 | 20 20 10 10 Greatest Overweight (x) 5 | . 5 5 5 Average Overweight (x) 2 | . 1 5 5 Largest Inventory Capacity 20 | 8 20 20 20 Average Capacity 13 | 7 10 20 20 Most Carried 8 | 1 8 7 8 Average Carried 5 | . 5 6 7 Final Capacity 20 | 8 20 20 20 Final Carried 8 | 1 7 7 8 Class Distribution -------------------- 100% | Mutant Dominant Class ---------------- Mutant | -10/Materials Mutant | -10/Mines Mutant | -9/Materials Resources | -11 -10 -10 -9 ----------- Run | Yrd Mat Min Mat Matter Collected 577 | 305 192 75 5 Remotely . | . . . . Salvage Created 655 | 128 369 70 88 Parts 50 | 9 26 5 10 Haulers Intercepted 2 | . 2 . . Recyclers Shooed . | . . . . Parts Field Recycled . | . . . . Retrieved Matter . | . . . . Parts Self-Destructed . | . . . . Prevented . | . . . . Parts Restored . | . . . . Kills | -11 -10 -10 -9 ------- Run | Yrd Mat Min Mat Combat Hostiles Destroyed 16 | . 8 5 3 Guns 16 | . 8 5 3 Classes Destroyed 9 | 2 6 . 1 Builder 1 | . 1 . . Tunneler 2 | 1 . 1 . Hauler 2 | . 2 . . Recycler 1 | 1 . . . Operator 2 | . 1 . 1 Watcher 3 | . 3 . . Swarmer 11 | . 6 5 . Grunt 4 | . 2 . 2 Sentry 1 | . . . 1 Best Kill Streak 5 | 1 5 3 4 Combat Bots Only 5 | . 5 3 3 Max Kills in Single Turn 1 | 1 1 1 1 Gunslinging . | . . . . Exploded . | . . . . Melee . | . . . . Uniques/NPCs Destroyed . | . . . . Combat | -11 -10 -10 -9 -------- Run | Yrd Mat Min Mat Hostile Shots Fired 117 | . 71 21 25 Missed 29 | . 17 5 7 Hits 88 | . 54 16 18 Projectile 88 | . 54 16 18 Critical Strikes 3 | . 2 . 1 Damage Taken 922 | . 552 123 247 Core 175 | . 107 14 54 Absorbed by Shields . | . . . . Core Remaining (%) 75 | 100 . 51 . Volleys Fired 69 | 7 45 9 8 Largest 2 | 2 2 2 2 Hottest 130 | 40 85 130 130 Shots Fired 138 | 14 90 18 16 Gun 138 | 14 90 18 16 Cannon . | . . . . Launcher . | . . . . Special . | . . . . Kinetic 91 | 14 75 2 . Thermal 47 | . 15 16 16 Explosive . | . . . . Electromagnetic . | . . . . Robot Hit Streak 14 | 3 14 4 7 Robot Miss Streak 12 | 6 12 6 5 Penetration Max . | . . . . Secondary Targets 9 | . 4 3 2 Max Gunslinging Chain 1 | . 1 1 1 Shots Hit Robots 92 | 6 57 14 15 Core Hits 66 | 2 27 17 20 Critical Kills . | . . . . Critical Parts Destroyed . | . . . . Critical Strikes . | . . . . Melee Attacks . | . . . . Impact . | . . . . Slashing . | . . . . Piercing . | . . . . Sneak Attacks . | . . . . Combat Hostiles . | . . . . Follow-up Attacks . | . . . . Damage Inflicted 1180 | 73 766 140 201 Guns 1180 | 73 766 140 201 Cannons . | . . . . Explosions . | . . . . Melee . | . . . . Ramming . | . . . . Kinetic 701 | 73 613 15 . Thermal 479 | . 153 125 201 Explosive . | . . . . Electromagnetic . | . . . . Impact . | . . . . Slashing . | . . . . Piercing . | . . . . Highest Corruption . | . . . . Average Corruption . | . . . . Corruption Purged . | . . . . Corruption Blocked . | . . . . Overload Shots . | . . . . Overflow Damage . | . . . . Projectiles . | . . . . Explosions . | . . . . Melee . | . . . . Knockbacks . | . . . . Impact . | . . . . Kinetic . | . . . . Secondary . | . . . . Self-Inflicted Damage . | . . . . Shots . | . . . . Rammed . | . . . . Targets Rammed . | . . . . Kicked . | . . . . Crushed . | . . . . Highest Temperature 444 | . 108 152 444 Average Temperature 62 | . 26 64 157 Received Heat Transfer 258 | . 165 . 93 Effects 3 | . . . 3 Shutdowns 1 | . . . 1 Interference 2 | . . . 2 Siege Activations . | . . . . Martial Activations . | . . . . Shielding Activations . | . . . . Robots Disrupted . | . . . . Combat Hostiles . | . . . . Robots Corrupted . | . . . . Combat Hostiles . | . . . . Parts Fried . | . . . . Impact Corruptions . | . . . . Robots Melted . | . . . . Combat Hostiles . | . . . . Parts Melted . | . . . . Heat Transferred 615 | . 200 160 255 Parts Sabotaged . | . . . . Parts Stolen . | . . . . Parts Stripped . | . . . . Power Chain Reactions . | . . . . Alert | -11 -10 -10 -9 ------- Run | Yrd Mat Min Mat Maximum Alert Level . | . . . . Low Security (%) 100 | 100 100 100 100 Level 1 . | . . . . Level 2 . | . . . . Level 3 . | . . . . Level 4 . | . . . . Level 5 . | . . . . High Security . | . . . . Max Security . | . . . . Peak Influence 100 | 5 100 57 70 Initial 15 | . . . 15 Average 12 | . 14 9 9 Influence Increases 537 | 10 298 140 89 Destroy 0b10 Robot/C 320 | . 160 100 60 Destroy 0b10 Robot/NC 55 | 10 35 5 5 Destroy Leader 80 | . 40 20 20 Successful Hack 37 | . 33 . 4 Disable Machine 15 | . 15 . . Lose Combat Pursuer 30 | . 15 15 . Influence Decreases 477 | 10 298 99 70 Entered New Map 26 | . . . 26 Time Decay 389 | 10 281 69 29 Lost Part 62 | . 17 30 15 Squads Dispatched 2 | . 1 . 1 Investigation . | . . . . Extermination . | . . . . Reinforcement 2 | . 1 . 1 Assault . | . . . . Garrison . | . . . . Intercept . | . . . . Searches Triggered . | . . . . Construction Impeded . | . . . . Haulers Reinforced . | . . . . Active Scanning Responses . | . . . . Cargo Convoy Interrupts . | . . . . Stealth | -11 -10 -10 -9 --------- Run | Yrd Mat Min Mat Distress Signals . | . . . . Communications Jammed . | . . . . Distress Signals . | . . . . Times Spotted 34 | . 21 6 7 Peak Tracking Total 7 | . 7 3 5 Tactical Retreats 2 | . 1 1 . Traps | -11 -10 -10 -9 ------- Run | Yrd Mat Min Mat Traps Triggered . | . . . . Indirectly . | . . . . Trap Hack Attempts . | . . . . Triggered . | . . . . Disarmed . | . . . . Reprogrammed . | . . . . Reused . | . . . . Traps Extracted . | . . . . Installed . | . . . . Triggered . | . . . . Machines | -11 -10 -10 -9 ---------- Run | Yrd Mat Min Mat Machines Disabled 1 | . 1 . . Max in Single Turn 1 | . 1 . . Machines Repaired . | . . . . Machines Dismantled . | . . . . Machines Sabotaged . | . . . . Overloaded Fab Kills . | . . . . Hacking | -11 -10 -10 -9 --------- Run | Yrd Mat Min Mat Machines Accessed 5 | . 4 . 1 Terminals 5 | . 4 . 1 Fabricators . | . . . . Repair Stations . | . . . . Recycling Units . | . . . . Scanalyzers . | . . . . Garrison Access . | . . . . Total Hacks 12 | . 9 . 3 Successful 8 | . 6 . 2 Failed 4 | . 3 . 1 Catastrophic . | . . . . Database Lockouts . | . . . . Manual 8 | . 6 . 2 Terminals 12 | . 9 . 3 Fabricators . | . . . . Repair Stations . | . . . . Recycling Units . | . . . . Scanalyzers . | . . . . Garrison Access . | . . . . Terminal Hacks 6 | . 5 . 1 Part Schematic 1 | . 1 . . Branch Access Points 1 | . 1 . . Locate Traps 3 | . 2 . 1 Zone Layout 1 | . 1 . . Fabricator Hacks . | . . . . Repair Station Hacks . | . . . . Recycling Unit Hacks . | . . . . Scanalyzer . | . . . . Garrison Access Hacks . | . . . . Unauthorized Hacks 2 | . 1 . 1 Terminals 2 | . 1 . 1 Botnet 2 | . 1 . 1 Fabricators . | . . . . Repair Stations . | . . . . Recycling Units . | . . . . Scanalyzers . | . . . . Garrison Access . | . . . . Data Cores Recovered . | . . . . Used . | . . . . Hacking Detections 3 | . 2 . 1 Full Trace Events . | . . . . Feedback Events . | . . . . Feedback Blocked . | . . . . Robot Schematics Acquired . | . . . . Robots Built . | . . . . Authchips . | . . . . Time . | . . . . Total Robot Build Rating . | . . . . Part Schematics Acquired 1 | . 1 . . Parts Built . | . . . . Authchips . | . . . . Time . | . . . . Total Part Build Rating . | . . . . Part Studies Acquired . | . . . . Parts Repaired . | . . . . Time . | . . . . Parts Recycled . | . . . . Recycled Matter . | . . . . Retrieved Matter . | . . . . Retrieved Components . | . . . . Parts Scanalyzed . | . . . . Part Schematics Acquired . | . . . . Parts Damaged . | . . . . Bothacking | -11 -10 -10 -9 ------------ Run | Yrd Mat Min Mat Used RIF Installer . | . . . . Robots Hacked . | . . . . Non-combat . | . . . . Combat . | . . . . Robot Hacks Applied . | . . . . Relay Couplers Released . | . . . . Fabnet Peak Effective % . | . . . . Robots Rewired . | . . . . Allies Hacked . | . . . . Hacks Repelled . | . . . . Allies | -11 -10 -10 -9 -------- Run | Yrd Mat Min Mat Total Allies . | . . . . Largest Group . | . . . . Highest-Rated Group . | . . . . Highest-Rated Ally . | . . . . Total Orders . | . . . . Ally Attacks . | . . . . Total Damage . | . . . . Kills . | . . . . Allies Corrupted . | . . . . Allies Melted . | . . . . Intel | -11 -10 -10 -9 ------- Run | Yrd Mat Min Mat Active Infowar (turns) 2159 | 13 1503 510 133 Seismic 2159 | 13 1503 510 133 Robot Analysis Total . | . . . . Derelict Logs Recovered 1 | . . 1 . Drone Launches . | . . . . Drone Recoveries . | . . . . Exploration | -11 -10 -10 -9 ------------- Run | Yrd Mat Min Mat Turns Passed 2262 | 75 1503 551 133 Spaces Moved 1099 | 39 669 329 62 Core 5 | 5 . . . Treads . | . . . . Legs 643 | 34 609 . . Wheels 451 | . 60 329 62 Hover . | . . . . Flight . | . . . . Fastest Speed 50 | 50 120 155 155 Average Speed 177 | 111 194 155 155 Slowest Speed 470 | 120 470 155 155 Overloaded Moves . | . . . . Propulsion Burnouts . | . . . . Robots Hopped . | . . . . Potential Cave-ins . | . . . . Cave-ins Triggered . | . . . . Exploration Rate (%) 42 | 3 93 68 7 Regions Visited 3 Branch Regions 1 Pre-discovered Areas 1 | . . 1 . Known Exits Taken 1 | . 1 . . Unknown Exits Taken 2 | 1 . 1 . Scrap Searched 1 | . . 1 . Spaces Dug . | . . . . Terrain Destroyed . | . . . . Melee . | . . . . Projectile . | . . . . AOE . | . . . . Terrain Rammed . | . . . . Walls Destroyed . | . . . . Machines Disabled . | . . . . Actions | -11 -10 -10 -9 --------- Run | Yrd Mat Min Mat Total 1268 | 53 781 352 82 Wait 78 | . 55 12 11 Move 1096 | 38 668 328 62 Hop . | . . . . Pick Up 9 | 1 6 1 1 Fast Attach 9 | 7 1 1 . Attach 2 | . 1 1 . Detach . | . . . . Swap 3 | . 3 . . Drop 2 | . 2 . . Fire 69 | 7 45 9 8 Melee . | . . . . Ram . | . . . . Kick . | . . . . Crush . | . . . . Escape Stasis . | . . . . Rewire . | . . . . Trap . | . . . . Miscellaneous . | . . . . Route ------- -11/Scrapyard -10/Materials (discovered 3 exits: *Mat x2 / *Min) -10/Mines (discovered 2 exits: *Mat x2) -9/Materials History --------- Turn | Location | Event 3 | -11/Scrapyard | Discovered new exit (range 16) 76 | -11/Scrapyard | Entered Materials 98 | -10/Materials | Identified exit to Mines 247 | -10/Materials | Discovered new exit (range 16) 312 | -10/Materials | Build established: Mutant 1278 | -10/Materials | Discovered new exit (range 16) 1579 | -10/Materials | Entered Mines 1652 | -10/Mines | Lost 3 parts (1n1u1w) 1872 | -10/Mines | Discovered new exit (range 6) 1881 | -10/Mines | Discovered new exit (range 10) 1886 | -10/Mines | Learned Materials stockpile data 1930 | -10/Mines | Learned location of Storage (-8) 2082 | -10/Mines | Assembled infested the area 2130 | -10/Mines | Entered Materials 2130 | -9/Materials | Evolved 2 slots: Propulsion x1, Utility x1 2263 | -9/Materials | Self-destructed Last Messages --------------- 2x Alarm Trap Map updated. 02154_ K-01 Serf collects debris. 02236_ O-16 Technician destroyed. 02240_ Acquired 5 matter. 02244_ Acquired Hacking Suite. 02247_ Wheel destroyed. 02248_ G-34 Mercenary destroyed. 02248_ Switching to secondary target: Y-45 Defender. 02251_ Y-45 Defender destroyed. 02251_ Switching to secondary target: G-34 Mercenary. 02257_ G-34 Mercenary destroyed. 02261_ Power failure, Imp. Ion Engine shutdown. 02262_ Critical hit (Burn: +37). 02262_ Spread Laser destroyed. 02263_ Overheating: System interference. 02263_ Spread Laser temporarily disabled. 02263_ Seismic Detector temporarily disabled. Map ----- +----------------------------------------------------+ | ???????????????????????????????????? | | ???????????????????????????????????? | | ???????????????????????????????????? | | ???????????????????????????????????? | | ??????*????????????????????????????? | | ???????????????????????????????????? | | ???????????????????????????????????? | | ???????????????????????????????????? | | ???????????????????=???????????????? | | ???????????????????????????????????? | | ???????????? ??????????????????????? | | ????????????t????????????????!?????? | | ???????????? ??????????????????????? | | ???????????? ??????????????????????? | | ????????????Y??????????????????????? | | ??????????## ??????????????????????? | | ?????????? ??????????????????????? | | ?????????? ??????????????????????? | | ?????!???? = ??????????????????????? | | ??????????!=*??????????????????????? | | ??????????=%!??????????????????????? | | ??????????#Y#??????????????????????? | | ??????????#^#??????????????????????? | | ??????????#%#??????????????????????? | | ??????????#!#??????????????????????? | | ###########@#??????????????????????? | | # ## #??????????????????????? | | # ##u#??######??????????????? | | # ## ##?# #??????????????? | | # # ### #??????????????? | | # + ^ ^ #??????????????? | | # # ^ ^ ##?????????????? | | # #^^ "#?????????????? | | # # """ T#?????????????? | | # # """ "#?????????????? | | ####+##### """ ##?????????????? | | ???# #???# #??????????????? | | ???# #???# ##?????????????? | | ???# #???# """ "#?????????????? | | ???# ##### """ T#?????????????? | | ???# """ "#?????????????? | | ???####### ##?????????????? | | ?????????# #??????????????? | | ??????########## #??????????????? | | ??????# # #??????????????? | | ??????# + #??????????????? | | ??????# """ # #??????????????? | | ??????? """ # #??????????????? | | ???????? """ ?######??????????????? | | ???????? """ ?????????????????????? | +----------------------------------------------------+ Best States ------------- Heat Dissipation 28 Energy Generation 12 Energy Capacity 265 Matter Stores 300 Matter Capacity 300 Sight Range 16 Terrain Scan Density 10 Evasion (%) 55 Item Schematics ----------------- Cargo Storage Unit | -10/Materials | Hacked Robot Schematics ------------------ None Fabricated ------------ Nothing Repaired ---------- Nothing Studied --------- None Alien Tech Used ----------------- None Achievements -------------- None Challenges ------------ None Game ------ Seed VampiricGyrokineticThruster Manual? 0 Play Time 00:11:29 Cumulative 168.8 hours Start 2026.08.21 @ 12:15:05 End 2026.08.22 @ 11:04:43 Sessions 5 Manual Loads 0 Difficulty Rogue Special Mode None Game No. 263 Rogue 263 Adventurer 0 Explorer 0 Win Type - Total 1 Types 1/0/0/0/0/0/0/0/0/0 Lore% 59 Gallery% 53 Achievement% 36 Wizard Run 0 Options --------- Layout 1 ASCII 0 Keyboard 0 Movement Arrows Keybinds 0 Fullscreen 2 Font 32/Smallcaps Map View 50x40 Zoom Use 0% Tactical HUD 1 Map Filters NONE Filters NONE Steam 1 RUN: b84c71d0-17f6-4ee5-a654-873a44e15351